bitfinex/quotes_SOLUSD_20250630
["timestamp","ask_amount","ask_price","bid_price","bid_amount"]
[1751305231603,0.2,156.88,156.86,19.07613357]
[1751305231799,0.2,156.88,156.87,6.37470516]
[1751305232205,0.2,156.88,156.86,25.45110253]
[1751305234017,0.2,156.88,156.87,45.71360408]
[1751305234910,0.2,156.88,156.87,45.07613357]
[1751305235920,0.2,156.88,156.87,51.45083873]
[1751305236120,0.2,156.88,156.86,18.64964886]
[1751305236701,0.2,156.88,156.85,12.23752096]
[1751305237823,0.2,156.88,156.85,5.86216157]
[1751305238026,0.2,156.88,156.87,5.58942487]
[1751305239819,0.2,156.88,156.85,5.86216157]
[1751305240018,0.2,156.88,156.86,5.58942487]
[1751305240403,0.2,156.88,156.87,5.58942487]
[1751305241014,0.2,156.9,156.87,5.58942487]
[1751305241015,0.2,156.9,156.89,44.933972]
[1751305241207,0.2,156.9,156.89,50.52339687]
[1751305241835,0.2,156.9,156.89,56.8972894]
[1751305243636,0.2,156.9,156.89,83.31945097]
[1751305246038,0.1158,156.95,156.94,24.66555844]
[1751305246328,0.1158,156.95,156.94,56.64555844]
[1751305247144,0.1158,156.95,156.94,63.01742029]
[1751305251449,0.2,156.98,156.97,18.64964886]
[1751305251619,0.2,156.98,156.97,50.92555844]
[1751305251818,0.2,156.98,156.97,26.0]
[1751305252141,0.2,156.98,156.97,11.30942487]
[1751305252314,0.2,156.98,156.97,5.72]
[1751305252513,0.2,156.98,156.97,11.30942487]
[1751305252915,0.2,156.98,156.97,5.72]
[1751305254629,0.2,156.98,156.97,11.30942487]
[1751305256423,0.2,156.98,156.97,5.72]
[1751305256838,6.57023824,156.98,156.97,5.72]
[1751305257346,0.2,156.98,156.97,5.72]
[1751305258231,6.57023824,156.98,156.97,5.72]
[1751305260932,0.2,156.98,156.97,5.72]
[1751305261582,0.2,156.98,156.97,29.95907373]
[1751305261782,0.1,157.05,157.02,18.64964886]
[1751305261987,0.1,157.05,157.04,5.58942487]
[1751305262162,0.1,157.05,157.04,11.30942487]
[1751305262660,0.1,157.05,157.04,5.72]
[1751305263689,6.46739891,157.05,157.04,5.7]
[1751305265487,12.05682378,157.05,157.04,5.7]
[1751305267277,85.81231565,157.05,156.99,5.7]
[1751305267572,5.58942487,157.01,156.99,5.7]
[1751305267773,5.58942487,157.02,156.99,5.7]
[1751305267982,5.58942487,157.01,156.99,5.7]
[1751305268507,5.58942487,157.0,156.99,5.7]
[1751305268803,5.58942487,157.0,156.94,0.2]
[1751305268975,26.0,157.02,156.94,5.9]
[1751305268976,5.58942487,156.95,156.94,5.9]
[1751305269373,11.96088074,156.95,156.94,5.9]
[1751305270003,14.65054412,156.95,156.94,5.9]
[1751305272892,26.0,156.99,156.94,5.9]
[1751305273090,14.64932649,156.98,156.94,5.9]
[1751305274603,0.1,157.05,156.99,0.42648471]
[1751305274803,8.37908825,157.05,157.0,8.27908825]
[1751305275104,8.37908825,157.05,157.01,5.7]
[1751305275400,8.27908825,157.03,157.01,5.7]
[1751305275611,8.27908825,157.04,157.01,5.7]
[1751305275775,6.36820989,157.03,157.01,5.7]
[1751305276508,6.36787213,157.04,157.02,8.27908825]
[1751305276701,6.36787213,157.04,157.01,5.7]
[1751305278289,30.56647133,157.04,157.01,5.7]
[1751305278491,8.27908825,157.03,157.01,5.7]
[1751305278680,8.27908825,157.02,156.99,5.94]
[1751305279081,8.27908825,157.03,156.99,5.94]
[1751305279903,30.56924236,157.02,156.99,5.94]
[1751305280214,8.27908825,157.0,156.99,5.94]
[1751305282104,14.648515,157.0,156.99,5.94]
[1751305282297,6.36942675,157.0,156.99,5.94]
[1751305282513,6.36942675,157.0,156.99,6.14]
[1751305284001,6.36902108,157.01,156.99,6.14]
[1751305285313,6.36902108,157.01,157.0,8.27908825]
[1751305286119,0.1,157.04,157.0,27.07089868]
[1751305286323,0.1,157.04,157.03,8.27908825]
[1751305286819,0.1,157.04,157.03,27.07089868]
[1751305287516,0.1,157.04,157.03,18.79181043]
[1751305287686,0.1,157.04,157.03,27.07089868]
[1751305289120,6.46780438,157.04,157.03,27.07089868]
[1751305289494,0.1,157.04,157.03,27.07089868]
[1751305289692,6.46780438,157.04,157.03,27.07089868]
[1751305289897,6.46780438,157.04,157.01,8.56341139]
[1751305290211,6.46780438,157.04,157.03,14.21908825]
[1751305290416,6.46780438,157.04,157.03,5.94]
[1751305300546,0.1,157.04,157.03,33.29522182]
[1751305300703,0.1,157.04,157.03,47.55103171]
[1751305300908,0.1,157.04,157.03,41.18282182]
[1751305301820,0.1,157.04,157.03,67.72282182]
[1751305302140,0.1,157.05,157.04,19.07613357]
[1751305302442,0.1,157.05,157.04,27.99200225]
[1751305303309,0.1,157.05,157.04,34.35980663]
[1751305303536,0.1,157.07,157.06,53.35522182]
[1751305303841,0.1,157.07,157.06,80.51192117]
[1751305306238,0.1,157.07,157.06,86.87891467]
[1751305308512,0.1,157.07,157.06,78.59982642]
[1751305308709,0.1,157.07,157.06,79.87522182]
[1751305308914,0.1,157.07,157.06,79.44873711]
[1751305309113,0.1,157.07,157.06,18.64964886]
[1751305309418,0.1,157.07,157.05,8.27908825]
[1751305309752,0.1,157.07,157.05,18.79181043]
[1751305309927,6.46660466,157.07,157.05,18.79181043]
[1751305310250,0.1,157.07,157.05,18.64964886]
[1751305310754,0.1,157.07,157.06,54.49192117]
[1751305312130,0.1,157.07,157.06,62.52952117]
[1751305312948,0.1,157.07,157.06,68.89651467]
[1751305315922,0.1,157.07,157.06,157.09651467]
[1751305316245,0.1,157.07,157.06,156.45981532]
[1751305318653,0.1,157.07,157.06,68.25981532]
[1751305318953,0.1,157.07,157.06,68.89651467]
[1751305320557,0.1,157.07,157.06,60.61742642]
[1751305320759,0.1,157.07,157.06,68.89651467]
[1751305321642,0.1,157.07,157.06,27.64002642]
[1751305321866,0.1,157.07,157.06,60.79891467]
[1751305322445,0.1,157.07,157.06,59.93242996]
[1751305322646,0.1,157.07,157.05,8.27908825]
[1751305322647,6.46672877,157.07,157.05,8.27908825]
[1751305322861,6.46672877,157.07,157.03,39.828]
[1751305323052,0.1,157.07,157.06,26.92873711]
[1751305323376,0.1,157.07,157.06,53.81522182]
[1751305323979,0.1,157.07,157.06,57.47629271]
[1751305324362,0.1,157.07,157.06,58.11299206]
[1751305325873,0.1,157.07,157.06,51.90312707]
[1751305326072,0.1,157.07,157.06,24.36497607]
[1751305327156,0.1,157.07,157.04,27.00432314]
[1751305327359,0.1,157.07,157.05,5.57316564]
[1751305328152,0.1,157.07,157.06,5.57316564]
[1751305329362,0.1,157.07,157.06,24.36497607]
[1751305329761,0.1,157.07,157.06,27.04993336]
[1751305330077,0.1,157.07,157.06,33.41692686]
[1751305330281,0.1,157.07,157.06,86.42125]
[1751305330658,0.1,157.07,157.06,87.05794935]
[1751305331268,0.1,157.07,157.06,175.25794935]
[1751305331588,0.1,157.14,157.11,0.42648471]
[1751305331770,0.1,157.14,157.13,27.3342565]
[1751305332275,0.1,157.14,157.13,33.41409042]
[1751305333383,0.1,157.14,157.13,33.69841356]
[1751305333688,0.1,157.14,157.13,60.43841356]
[1751305334886,0.1,157.18,157.17,27.04993336]
[1751305335060,0.1,157.18,157.17,54.0942565]
[1751305335382,0.1,157.18,157.17,54.73051023]
[1751305336273,0.1,157.19,157.18,0.42648471]
[1751305336454,0.1,157.19,157.18,27.3342565]
[1751305338180,0.1,157.19,157.18,33.69638908]
[1751305339074,0.1,157.23,157.22,18.64964886]
[1751305339262,0.1,157.23,157.22,33.1942565]
[1751305339664,0.1,157.23,157.22,24.93613357]
[1751305339882,0.1,157.23,157.22,32.76777179]
[1751305340185,0.1,157.23,157.22,5.86]
[1751305341376,0.1,157.23,157.22,14.11812293]
[1751305342373,0.1,157.23,157.22,39.55477042]
[1751305343966,0.1,157.23,157.22,31.29664749]
[1751305344166,0.1,157.23,157.22,39.55477042]
[1751305344579,0.1,157.23,157.22,31.29664749]
[1751305344782,0.1,157.23,157.22,39.55477042]
[1751305345184,0.1,157.23,157.22,66.89082181]
[1751305347392,0.1,157.23,157.18,5.92108277]
[1751305347573,0.1,157.23,157.22,8.25812293]
[1751305347768,0.1,157.23,157.22,8.68460764]
[1751305348391,0.1,157.23,157.22,8.54244607]
[1751305348596,0.1,157.23,157.2,18.64964886]
[1751305348597,0.1,157.23,157.2,26.90777179]
[1751305349875,6.46021814,157.23,157.19,6.0]
[1751305350094,8.25812293,157.22,157.19,6.0]
[1751305350301,14.61883214,157.22,157.19,6.0]
[1751305350475,6.36070921,157.22,157.19,6.0]
[1751305350792,0.1,157.23,157.2,19.07613357]
[1751305350999,0.1,157.23,157.21,8.25812293]
[1751305351296,0.1,157.23,157.2,27.3342565]
[1751305351484,0.1,157.23,157.21,8.25812293]
[1751305351677,0.1,157.23,157.22,18.64964886]
[1751305351874,0.1,157.23,157.2,0.42648471]
[1751305352076,0.1,157.23,157.2,19.07613357]
[1751305352578,0.1,157.23,157.2,33.69533657]
[1751305353293,0.1,157.23,157.21,8.25812293]
[1751305353618,0.1,157.23,157.22,54.95030789]
[1751305353903,0.1,157.29,157.22,54.95030789]
[1751305353904,0.1,157.29,157.26,26.90777179]
[1751305354093,0.1,157.29,157.27,6.0]
[1751305355568,0.1,157.29,157.27,14.25812293]
[1751305355772,0.1,157.29,157.27,6.0]
[1751305358297,14.71597015,157.29,157.27,6.0]
[1751305358595,0.1,157.29,157.27,6.0]
[1751305359292,0.1,157.29,157.28,8.25812293]
[1751305359797,0.1,157.29,157.27,20.61647401]
[1751305360382,0.1,157.29,157.28,8.25812293]
[1751305360704,0.1,157.29,157.28,25.00773634]
[1751305360889,0.1,157.29,157.28,33.26585927]
[1751305361294,0.1,157.29,157.28,25.00773634]
[1751305361505,0.1,157.29,157.28,33.26585927]
[1751305361895,0.1,157.29,157.28,18.64964886]
[1751305362386,0.1,157.29,157.28,33.69234398]
[1751305363218,0.1,157.29,157.28,25.43422105]
[1751305363509,0.1,157.29,157.28,33.69234398]
[1751305364281,0.1,157.29,157.28,25.43422105]
[1751305364482,0.1,157.29,157.28,33.69234398]
[1751305365488,0.1,157.29,157.28,34.32815272]
[1751305365899,0.1,157.29,157.28,44.10997565]
[1751305366100,0.1,157.34,157.33,19.07613357]
[1751305366297,0.1,157.34,157.33,27.3342565]
[1751305366550,0.1,157.34,157.33,54.2942565]
[1751305367519,0.1,157.34,157.33,60.65032336]
[1751305368320,0.1,157.36,157.35,26.28432314]
[1751305368498,1.5872,157.44,157.36,53.3342565]
[1751305368814,1.5872,157.44,157.4,8.25812293]
[1751305369520,21.01018487,157.45,157.4,8.25812293]
[1751305369521,6.4008,157.45,157.42,8.25812293]
[1751305369686,6.4008,157.45,157.43,6.16]
[1751305370217,1.2369417,157.5,157.44,26.90777179]
[1751305370419,8.25812293,157.47,157.43,14.41812293]
[1751305370590,15.84435456,157.5,157.45,8.25812293]
[1751305372301,8.25812293,157.49,157.45,8.25812293]
[1751305372502,7.58623163,157.5,157.44,6.35147065]
[1751305372716,7.58623163,157.5,157.44,25.00111951]
[1751305373015,8.25812293,157.49,157.44,18.64964886]
[1751305373210,9.49506463,157.5,157.44,25.00115903]
[1751305373426,1.2369417,157.5,157.48,8.25812293]
[1751305373796,1.2369417,157.5,157.47,8.25812293]
[1751305374508,1.2369417,157.5,157.48,8.25812293]
[1751305375125,1.2369417,157.5,157.47,8.25812293]
[1751305375421,7.58616704,157.5,157.47,8.25812293]
[1751305375624,1.2369417,157.5,157.46,8.25812293]
[1751305375924,15.84428899,157.5,157.44,18.64964886]
[1751305376123,8.25812293,157.48,157.43,32.16]
[1751305376299,8.25812293,157.48,157.43,14.41812293]
[1751305376798,7.58616606,157.5,157.41,26.90777179]
[1751305376799,14.60924944,157.46,157.41,26.90777179]
[1751305376997,14.60924944,157.46,157.44,6.16]
[1751305377421,14.60924944,157.46,157.44,6.14]
[1751305378122,8.25812293,157.45,157.44,6.14]
[1751305378907,42.33382293,157.45,157.44,6.14]
[1751305379631,34.0757,157.45,157.44,6.14]
[1751305379829,42.33382293,157.45,157.38,6.14]
[1751305380122,14.61176674,157.39,157.38,6.14]
[1751305380706,8.25812293,157.4,157.38,6.14]
[1751305380899,8.25812293,157.39,157.38,6.14]
[1751305382023,14.61176674,157.39,157.38,6.14]
[1751305383300,14.61176674,157.39,157.31,0.28432314]
[1751305383301,26.0,157.35,157.26,0.2]
[1751305383506,26.0,157.35,157.33,0.2]
[1751305383724,8.25812293,157.34,157.33,0.2]
[1751305384028,14.61378582,157.34,157.33,0.2]
[1751305384325,33.26343468,157.34,157.33,0.2]
[1751305384505,26.0,157.3,157.26,0.2]
[1751305384704,8.1261,157.33,157.26,0.2]
[1751305384705,27.12,157.32,157.26,0.2]
[1751305384920,8.25812293,157.28,157.26,0.2]
[1751305385097,53.12,157.32,157.26,0.2]
[1751305385300,8.25812293,157.28,157.26,0.2]
[1751305385530,8.25812293,157.27,157.26,0.2]
[1751305385828,8.25812293,157.28,157.26,0.2]
[1751305387025,9.30729626,157.3,157.26,0.2]
[1751305387217,9.30729626,157.3,157.29,8.25812293]
[1751305387423,38.25812293,157.34,157.29,8.25812293]
[1751305387621,38.25812293,157.34,157.28,8.25812293]
[1751305387622,8.25812293,157.33,157.28,8.25812293]
[1751305388009,8.25812293,157.33,157.29,8.25812293]
[1751305388204,8.25812293,157.33,157.28,6.3577744]
[1751305388427,8.25812293,157.32,157.28,18.79181043]
[1751305389623,8.25812293,157.32,157.27,14.61624432]
[1751305390126,14.61462865,157.32,157.27,14.61624432]
[1751305390325,8.25812293,157.32,157.27,14.61624432]
[1751305390826,8.25812293,157.32,157.28,8.25812293]
[1751305391233,7.7787,157.37,157.31,8.25812293]
[1751305391535,8.25812293,157.36,157.32,14.41812293]
[1751305391831,8.25812293,157.36,157.32,6.16]
[1751305392336,6.35326859,157.4,157.33,27.04993336]
[1751305392641,6.35326859,157.4,157.35,8.25812293]
[1751305392863,8.25812293,157.38,157.33,27.04993336]
[1751305393065,30.0,157.35,157.33,27.04993336]
[1751305393229,30.0,157.35,157.32,14.41812293]
[1751305394343,30.0,157.35,157.32,20.7744628]
[1751305394540,38.25812293,157.35,157.32,6.16]
[1751305395259,44.6133838,157.35,157.32,6.16]
[1751305395458,38.25812293,157.35,157.32,6.16]
[1751305395664,30.0,157.35,157.33,8.25812293]
[1751305395825,30.0,157.35,157.34,8.25812293]
[1751305397030,8.25812293,157.39,157.34,14.61378582]
[1751305397538,14.61187859,157.39,157.34,6.35566289]
[1751305397746,8.25812293,157.38,157.33,8.25812293]
[1751305397941,8.25812293,157.37,157.32,20.77422895]
[1751305398358,6.35375566,157.39,157.32,20.77422895]
[1751305398662,8.25812293,157.37,157.32,20.77422895]
[1751305398858,6.35375566,157.39,157.32,20.77422895]
[1751305399036,8.25812293,157.37,157.32,20.77422895]
[1751305399778,8.25812293,157.36,157.32,6.16]
[1751305400271,8.25812293,157.36,157.34,0.2]
[1751305400429,27.15,157.35,157.34,0.2]
[1751305401336,27.15,157.35,157.34,6.55566289]
[1751305401543,27.15,157.35,157.34,0.2]
[1751305402074,27.15,157.35,157.34,6.55566289]
[1751305402630,27.15,157.35,157.34,14.81378582]
[1751305403662,14.71202861,157.39,157.34,14.81378582]
[1751305403873,8.35812293,157.39,157.34,14.81378582]
[1751305406269,14.71177279,157.39,157.34,14.81378582]
[1751305406581,8.35812293,157.39,157.34,14.81378582]
[1751305407132,0.1,157.39,157.34,6.55566289]
[1751305407656,0.1,157.39,157.35,19.07613357]
[1751305408455,0.1,157.39,157.37,8.25812293]
[1751305408655,0.1,157.39,157.38,8.25812293]
[1751305408882,0.1,157.39,157.38,27.3342565]
[1751305409849,0.1,157.39,157.38,33.68830402]
[1751305411975,0.1,157.39,157.38,14.61217045]
[1751305414985,0.1,157.39,157.38,8.25812293]
[1751305415180,0.1,157.39,157.37,33.26211893]
[1751305415899,0.1,157.39,157.36,40.61280476]
[1751305416389,0.1,157.39,157.37,8.25812293]
[1751305416695,0.1,157.39,157.38,8.25812293]
[1751305416905,0.1,157.39,157.38,8.68460764]
[1751305417110,10.92681424,157.58,157.4,18.64964886]
[1751305417267,5.91870637,157.58,157.48,44.64964886]
[1751305417466,7.89202638,157.59,157.52,26.0]
[1751305417467,1.5461,157.59,157.52,26.0]
[1751305417778,1.5461,157.59,157.52,34.25812293]
[1751305418097,1.5461,157.59,157.53,34.25812293]
[1751305418297,1.5461,157.59,157.54,8.25812293]
[1751305418594,1.5461,157.59,157.53,40.6060314]
[1751305418799,8.25812293,157.58,157.53,40.6060314]
[1751305418969,8.25812293,157.58,157.53,32.34783605]
[1751305419293,1.5461,157.59,157.53,34.25812293]
[1751305419493,1.5461,157.59,157.53,26.0]
[1751305419494,7.89174841,157.59,157.53,26.0]
[1751305419667,7.89169301,157.59,157.53,26.0]
[1751305419864,8.25812293,157.57,157.51,26.0]
[1751305420065,8.25812293,157.53,157.49,6.86]
[1751305420296,0.14216157,157.58,157.49,13.20959017]
[1751305420297,6.34638573,157.57,157.49,13.20959017]
[1751305420500,8.25812293,157.54,157.49,6.86]
[1751305420700,8.25812293,157.51,157.49,6.86]
[1751305421011,8.25812293,157.53,157.49,6.86]
[1751305421619,26.0,157.56,157.49,6.86]
[1751305421977,8.25812293,157.53,157.49,6.86]
[1751305422369,8.25812293,157.54,157.49,6.86]
[1751305422573,8.25812293,157.54,157.49,15.11812293]
[1751305423097,8.25812293,157.54,157.49,21.46764956]
[1751305423892,8.25812293,157.54,157.5,8.25812293]
[1751305424089,8.25812293,157.54,157.49,15.11812293]
[1751305424316,14.60584888,157.54,157.49,15.11812293]
[1751305425010,8.25812293,157.53,157.49,15.11812293]
[1751305425224,8.25812293,157.52,157.49,6.86]
[1751305425388,8.25812293,157.51,157.49,6.86]
[1751305425785,8.25812293,157.53,157.49,15.11812293]
[1751305426711,6.34719136,157.55,157.5,8.25812293]
[1751305426712,14.60531429,157.55,157.5,8.25812293]
[1751305428091,14.60531429,157.55,157.49,13.20933878]
[1751305428286,14.60531429,157.55,157.5,8.25812293]
[1751305428493,14.60531429,157.55,157.49,13.20933878]
[1751305428692,8.25812293,157.54,157.5,8.25812293]
[1751305428891,8.25812293,157.54,157.49,6.86]
[1751305429108,6.34719136,157.55,157.49,6.86]
[1751305429109,8.25812293,157.53,157.49,6.86]
[1751305429408,8.25812293,157.54,157.5,14.60732123]
[1751305429607,14.60572297,157.54,157.5,8.25812293]
[1751305430119,14.60572297,157.54,157.49,47.46759219]
[1751305430416,8.25812293,157.53,157.49,39.20940549]
[1751305430616,8.25812293,157.55,157.51,8.25812293]
[1751305430795,30.0,157.52,157.49,39.20940549]
[1751305430987,30.0,157.52,157.51,8.25812293]
[1751305431186,30.0,157.52,157.49,39.20940549]
[1751305431187,30.0,157.52,157.5,8.25812293]
[1751305431608,14.60537071,157.55,157.5,8.25812293]
[1751305431803,8.25812293,157.54,157.5,8.25812293]
[1751305432721,8.25812293,157.54,157.49,47.46752842]
[1751305433221,8.25812293,157.54,157.49,41.11812293]
[1751305433398,6.3479972,157.53,157.49,41.11812293]
[1751305433599,14.60612013,157.53,157.49,32.86]
[1751305433802,6.3479972,157.53,157.49,32.86]
[1751305434004,14.60612013,157.53,157.49,32.86]
[1751305434192,6.3479972,157.53,157.49,32.86]
[1751305434397,14.60612013,157.53,157.49,32.86]
[1751305434597,8.25812293,157.53,157.49,32.86]
[1751305435005,8.25812293,157.53,157.49,39.20958938]
[1751305435214,8.25812293,157.53,157.49,47.46771231]
[1751305435416,8.25812293,157.53,157.49,39.20958938]
[1751305436409,8.25812293,157.55,157.49,39.20958938]
[1751305436622,8.25812293,157.55,157.5,8.25812293]
[1751305436805,8.25812293,157.54,157.49,39.20958938]
[1751305436998,8.25812293,157.54,157.5,8.25812293]
[1751305437306,8.25812293,157.54,157.49,39.20958938]
[1751305437517,8.25812293,157.54,157.5,8.25812293]
[1751305438703,8.25812293,157.54,157.49,39.20958938]
[1751305438704,8.25812293,157.53,157.49,39.20958938]
[1751305439701,8.25812293,157.53,157.49,32.86]
[1751305440425,8.25812293,157.53,157.49,39.20959566]
[1751305440923,44.28512414,157.58,157.49,47.46771859]
[1751305441132,8.25812293,157.56,157.51,8.25812293]
[1751305441305,30.0,157.52,157.51,8.25812293]
[1751305441811,8.25812293,157.56,157.51,8.25812293]
[1751305442315,8.25812293,157.56,157.51,14.60668796]
[1751305443133,6.34611062,157.58,157.51,14.60668796]
[1751305443306,8.25812293,157.56,157.51,14.60668796]
[1751305444003,14.60501322,157.56,157.51,14.60668796]
[1751305444524,8.25812293,157.55,157.51,14.60668796]
[1751305445230,1.5461,157.59,157.52,26.90777179]
[1751305445406,8.25812293,157.57,157.52,26.90777179]
[1751305445606,8.25812293,157.57,157.53,8.25812293]
[1751305446441,8.25812293,157.56,157.51,6.34856503]
[1751305446606,8.25812293,157.56,157.52,4.69064354]
[1751305446808,8.25812293,157.56,157.51,14.60668796]
[1751305447009,8.25812293,157.55,157.52,4.6906421]
[1751305447226,8.25812293,157.55,157.51,14.60668796]
[1751305447409,8.25812293,157.55,157.52,4.6927131]
[1751305447620,8.25812293,157.55,157.51,14.60668796]
[1751305447821,6.34680964,157.56,157.52,4.69271223]
[1751305448020,15.86395075,157.59,157.51,6.34856503]
[1751305448327,15.86395075,157.59,157.52,4.69270025]
[1751305448531,15.86395075,157.59,157.51,6.34856503]
[1751305448732,15.86395075,157.59,157.52,4.69432205]
[1751305448909,15.86395075,157.59,157.51,6.34856503]
[1751305449109,22.20953105,157.59,157.52,4.69432292]
[1751305449403,50.46953105,157.59,157.51,6.34856503]
[1751305449630,50.46953105,157.59,157.52,4.69622753]
[1751305449831,5.54334593,157.55,157.51,6.34856503]
[1751305450031,5.54334593,157.55,157.52,4.69624302]
[1751305450247,5.54334593,157.53,157.49,13.2095918]
[1751305450420,5.54334593,157.52,157.49,13.2095918]
[1751305450608,5.54334593,157.53,157.49,18.75293773]
[1751305451113,5.54334593,157.53,157.5,4.70135634]
[1751305451330,5.54334593,157.54,157.49,18.75293773]
[1751305451524,5.54334593,157.54,157.5,4.70449816]
[1751305451731,6.34598299,157.58,157.51,10.24746173]
[1751305451905,5.54334593,157.56,157.51,5.54334593]
[1751305452226,4.54334593,157.56,157.52,4.70249205]
[1751305452541,5.54334593,157.55,157.53,4.70249205]
[1751305452729,6.34692606,157.56,157.51,11.89213287]
[1751305452914,5.54334593,157.55,157.52,4.70470738]
[1751305453116,5.54334593,157.55,157.53,4.70470738]
[1751305453318,30.0,157.54,157.5,11.89239311]
[1751305453512,30.0,157.54,157.51,4.70713747]
[1751305453714,30.0,157.54,157.5,11.89239311]
[1751305453715,30.0,157.54,157.52,4.70713747]
[1751305454036,30.0,157.54,157.53,4.70713747]
[1751305454225,36.34759426,157.54,157.53,4.70713747]
[1751305454426,35.54334593,157.54,157.53,4.70713747]
[1751305454631,41.89094019,157.54,157.49,6.86]
[1751305454831,5.54334593,157.51,157.5,4.7098297]
[1751305455018,5.54334593,157.51,157.49,6.86]
[1751305455343,5.54334593,157.5,157.49,6.86]
[1751305455532,5.54334593,157.5,157.49,13.93099224]
[1751305455737,5.54334593,157.53,157.49,13.93099224]
[1751305455927,5.54334593,157.53,157.5,4.71451683]
[1751305456128,5.54334593,157.53,157.49,6.86]
[1751305456443,41.89094019,157.54,157.5,4.714107]
[1751305456689,5.54334593,157.53,157.49,13.20958637]
[1751305456821,5.54334593,157.53,157.5,4.71585495]
[1751305457021,5.54334593,157.53,157.49,13.20958637]
[1751305457226,5.54334593,157.53,157.5,4.71585671]
[1751305457424,5.54334593,157.53,157.51,4.71585671]
[1751305457726,5.54334593,157.53,157.49,13.20958637]
[1751305458044,11.89136341,157.53,157.5,4.71832064]
[1751305458218,5.54334593,157.52,157.51,4.71832064]
[1751305458546,11.89136341,157.53,157.5,4.71832064]
[1751305458840,11.89136341,157.53,157.51,4.71832064]
[1751305459017,5.54334593,157.52,157.49,6.86]
[1751305459217,5.54334593,157.51,157.5,4.721125]
[1751305459624,5.54334593,157.52,157.5,4.721125]
[1751305459936,5.54334593,157.52,157.51,4.721125]
[1751305462964,11.89135751,157.53,157.51,4.721125]
[1751305463157,11.89135751,157.53,157.52,4.721125]
[1751305464061,41.89111332,157.54,157.52,4.721125]
[1751305464237,41.89111332,157.54,157.53,4.721125]
[1751305464648,30.0,157.54,157.53,4.721125]
[1751305464847,30.0,157.54,157.53,29.3406045]
[1751305465050,12.13543137,157.54,157.53,43.59186955]
[1751305465252,12.13543137,157.54,157.53,36.88528824]
[1751305465460,5.54334593,157.6,157.54,18.79181043]
[1751305465756,5.54334593,157.6,157.56,5.54334593]
[1751305466162,5.54334593,157.6,157.57,4.73278259]
[1751305466367,11.88853067,157.6,157.58,4.73278259]
[1751305466659,11.88853067,157.6,157.59,4.73278259]
[1751305466853,42.48592862,157.64,157.59,4.73278259]
[1751305466854,14.48592862,157.64,157.59,4.73278259]
[1751305467068,5.54334593,157.61,157.6,4.73278259]
[1751305467360,5.54334593,157.61,157.56,5.54334593]
[1751305467760,22.20389519,157.63,157.56,5.54334593]
[1751305467761,5.54334593,157.6,157.56,5.54334593]
[1751305468265,22.20389519,157.63,157.56,5.54334593]
[1751305468452,5.54334593,157.6,157.56,5.54334593]
[1751305468850,5.54334593,157.6,157.54,6.4896229]
[1751305469161,5.54334593,157.59,157.54,5.54334593]
[1751305469360,2.5300122,157.58,157.53,5.54334593]
[1751305470262,8.876277,157.58,157.53,5.54334593]
[1751305470664,8.876277,157.58,157.54,5.54334593]
[1751305471075,6.3462648,157.58,157.54,5.54334593]
[1751305471368,11.88878149,157.6,157.55,5.54334593]
[1751305471569,5.54334593,157.56,157.5,1.6172]
[1751305471751,5.54334593,157.53,157.48,6.3526]
[1751305471957,5.54334593,157.55,157.5,5.54334593]
[1751305472166,11.89094019,157.54,157.49,31.54334593]
[1751305472362,5.54334593,157.53,157.49,26.0]
[1751305472759,5.54334593,157.53,157.48,6.34963757]
[1751305472760,5.54334593,157.52,157.48,5.54334593]
[1751305472960,5.54334593,157.52,157.48,31.54334593]
[1751305473568,5.54334593,157.52,157.48,5.54334593]
[1751305473961,5.54334593,157.52,157.48,31.54334593]
[1751305474672,11.89163103,157.53,157.48,37.89335277]
[1751305474875,11.89163103,157.53,157.48,31.54334593]
[1751305475082,5.54334593,157.52,157.48,31.54334593]
[1751305475260,5.54334593,157.49,157.47,7.0]
[1751305475458,6.5917,157.52,157.42,34.84389314]
[1751305475663,5.54334593,157.47,157.43,26.0]
[1751305476277,5.54334593,157.45,157.41,39.68334593]